fUST/lending_fUST_20240120
["ID","MTS","AMOUNT","RATE_DAILY","PERIOD"]
[312181234,1705681846369,-8330.08717794,0.00028367,4]
[312181235,1705681846381,-2246.0867171,0.00028367,4]
[312181236,1705681846393,-12293.32331406,0.00028367,4]
[312181237,1705681846410,-12.79708564,0.00028367,4]
[312181238,1705681846420,-40356.59421713,0.00028367,4]
[312181239,1705681846432,-587.28003021,0.00028367,4]
[312181240,1705681846445,-43947.03939705,0.00028367,4]
[312181241,1705681846455,-5000.0,0.00028367,5]
[312181242,1705681846464,-5000.0,0.00028367,5]
[312181243,1705681846474,-9130.49651543,0.00028367,3]
[312181244,1705681846484,-986.82649751,0.00028367,3]
[312181245,1705681846494,-5000.0,0.00028367,5]
[312181246,1705681846504,-8855.52872573,0.00028367,3]
[312181247,1705681846513,-1000.0,0.00028389,2]
[312181248,1705681846523,-1000.0,0.00028406,2]
[312181249,1705681846533,-1000.0,0.00028415,2]
[312181250,1705681846542,-899.77207738,0.00028466,2]
[312181251,1705681846551,-1000.0,0.00028471,2]
[312181252,1705681846561,-745.22,0.00028492,2]
[312181253,1705681846570,-6659.34,0.00028492,2]
[312181254,1705681846580,-842.15,0.00028492,2]
[312181255,1705681846650,-500.0,0.00028493,2]
[312181256,1705681846663,-500.0,0.00028493,2]
[312181257,1705681846673,-500.0,0.00028493,2]
[312181258,1705681846682,-500.0,0.00028493,2]
[312181259,1705681846692,-500.0,0.00028493,2]
[312181260,1705681846701,-500.0,0.00028493,2]
[312181261,1705681846710,-160.84,0.00028493,2]
[312181262,1705681846719,-500.0,0.00028493,2]
[312181263,1705681846729,-500.0,0.00028493,2]
[312181264,1705681846739,-511.72220333,0.00028493,2]
[312181265,1705681846749,-1837.6,0.00028493,2]
[312181266,1705681846758,-500.0,0.00028493,2]
[312181267,1705681846767,-500.0,0.00028493,2]
[312181268,1705681846777,-500.0,0.00028493,2]
[312181269,1705681846787,-500.0,0.00028493,2]
[312181270,1705681846797,-653.87,0.00028493,2]
[312181271,1705681846807,-500.0,0.00028493,2]
[312181272,1705681846816,-500.0,0.00028493,2]
[312181273,1705681846826,-500.0,0.00028493,2]
[312181274,1705681846836,-302.98557895,0.00028493,2]
[312181275,1705681846845,-500.0,0.00028493,2]
[312181276,1705681846855,-500.0,0.00028493,2]
[312181277,1705681846864,-947.99,0.00028493,2]
[312181278,1705681846874,-500.0,0.00028493,2]
[312181279,1705681846883,-500.0,0.00028493,2]
[312181280,1705681846893,-500.0,0.00028493,2]
[312181281,1705681846904,-500.0,0.00028493,2]
[312181282,1705681846913,-500.0,0.00028493,2]
[312181283,1705681846922,-500.0,0.00028493,2]
[312181284,1705681846931,-500.0,0.00028493,2]
[312181285,1705681846940,-1088.19,0.00028493,2]
[312181286,1705681846949,-684.42,0.00028493,2]
[312181287,1705681846958,-3450.28,0.00028493,2]
[312181288,1705681846967,-500.0,0.00028493,2]
[312181289,1705681846977,-3665.59,0.00028493,2]
[312181290,1705681846986,-855.15,0.00028493,2]
[312181291,1705681846995,-609.64,0.00028493,2]
[312181292,1705681847004,-500.0,0.00028493,2]
[312181293,1705681847013,-712.0,0.00028493,2]
[312181294,1705681847023,-500.0,0.00028493,2]
[312181295,1705681847032,-1748.19,0.00028493,2]
[312181296,1705681847041,-500.0,0.00028493,2]
[312181297,1705681847051,-500.0,0.00028493,2]
[312181298,1705681847060,-10693.43,0.00028493,2]
[312181299,1705681847069,-2978.47,0.00028493,2]
[312181300,1705681847078,-698.19,0.00028493,2]
[312181301,1705681847088,-500.0,0.00028493,2]
[312181302,1705681847097,-722.25,0.00028493,2]
[312181303,1705681847107,-14127.28,0.00028493,2]
[312181304,1705681847117,-500.0,0.00028493,2]
[312181305,1705681847126,-588.66,0.00028493,2]
[312181306,1705681847135,-864.61,0.00028493,2]
[312181307,1705681847144,-656.57,0.00028493,2]
[312181308,1705681847156,-500.0,0.00028493,2]
[312181309,1705681847166,-1334.87,0.00028493,2]
[312181310,1705681847176,-500.0,0.00028493,2]
[312181311,1705681847197,-500.0,0.00028493,2]
[312181312,1705681847207,-1613.11,0.00028493,2]
[312181313,1705681847217,-500.0,0.00028493,2]
[312181314,1705681847227,-500.0,0.00028493,2]
[312181315,1705681847237,-3692.83,0.00028493,2]
[312181316,1705681847247,-500.0,0.00028493,2]
[312181317,1705681847257,-542.18057941,0.00028493,2]
[312181318,1705681847274,-500.0,0.00028493,2]
[312181319,1705681847292,-574.08507854,0.00028493,2]
[312181320,1705681847306,-1075.66,0.00028493,2]
[312181321,1705681847319,-1384.48,0.00028493,2]
[312181322,1705681847334,-500.0,0.00028493,2]
[312181323,1705681847349,-716.62,0.00028493,2]
[312181324,1705681847364,-777.15,0.00028493,2]
[312181325,1705681847378,-306.034734,0.00028493,2]
[312181326,1705681847391,-1000.0,0.00028507,2]
[312181327,1705681847408,-1000.0,0.000287,7]
[312181328,1705681847421,-745.22,0.00028766,2]
[312181329,1705681847435,-6659.34,0.00028766,2]
[312181330,1705681847449,-842.15,0.00028766,2]
[312181331,1705681847460,-500.0,0.00028767,2]
[312181332,1705681847478,-500.0,0.00028767,2]
[312181333,1705681847494,-500.0,0.00028767,2]
[312181334,1705681847508,-500.0,0.00028767,2]
[312181335,1705681847523,-1837.6,0.00028767,2]
[312181336,1705681847538,-500.0,0.00028767,2]
[312181337,1705681847553,-500.0,0.00028767,2]
[312181338,1705681847569,-500.0,0.00028767,2]
[312181339,1705681847584,-500.0,0.00028767,2]
[312181340,1705681847596,-653.87,0.00028767,2]
[312181341,1705681847607,-500.0,0.00028767,2]
[312181342,1705681847620,-500.0,0.00028767,2]
[312181343,1705681847634,-500.0,0.00028767,2]
[312181344,1705681847646,-947.99,0.00028767,2]
[312181345,1705681847663,-500.0,0.00028767,2]
[312181346,1705681847674,-500.0,0.00028767,2]
[312181347,1705681847685,-500.0,0.00028767,2]
[312181348,1705681847696,-500.0,0.00028767,2]
[312181350,1705681847708,-500.0,0.00028767,2]
[312181351,1705681847720,-587.13,0.00028767,2]
[312181352,1705681847733,-179.9,0.00028767,2]
[312181353,1705681847744,-1088.19,0.00028767,2]
[312181354,1705681847756,-684.42,0.00028767,2]
[312181355,1705681847767,-3450.28,0.00028767,2]
[312181356,1705681847779,-453.77568507,0.00028767,2]
[312181357,1705681847791,-3665.59,0.00028767,2]
[312181358,1705681847803,-855.15,0.00028767,2]
[312181359,1705681847814,-609.64,0.00028767,2]
[312181360,1705681847827,-500.0,0.00028767,2]
[312181361,1705681847839,-712.0,0.00028767,2]
[312181362,1705681847851,-500.0,0.00028767,2]
[312181363,1705681847863,-1748.19,0.00028767,2]
[312181364,1705681847875,-500.0,0.00028767,2]
[312181365,1705681847887,-500.0,0.00028767,2]
[312181366,1705681847898,-10693.43,0.00028767,2]
[312181367,1705681847912,-2978.47,0.00028767,2]
[312181368,1705681847922,-698.19,0.00028767,2]
[312181369,1705681847931,-500.0,0.00028767,2]
[312181370,1705681847941,-722.25,0.00028767,2]
[312181371,1705681847951,-14127.28,0.00028767,2]
[312181372,1705681847960,-588.66,0.00028767,2]
[312181373,1705681847970,-864.61,0.00028767,2]
[312181375,1705681847979,-656.57,0.00028767,2]
[312181376,1705681847988,-1334.87,0.00028767,2]
[312181378,1705681847997,-1613.11,0.00028767,2]
[312181380,1705681848007,-500.0,0.00028767,2]
[312181382,1705681848016,-500.0,0.00028767,2]
[312181384,1705681848025,-3692.83,0.00028767,2]
[312181386,1705681848034,-500.0,0.00028767,2]
[312181388,1705681848044,-500.0,0.00028767,2]
[312181403,1705681848186,-1075.66,0.00028767,2]
[312181405,1705681848200,-1384.48,0.00028767,2]
[312181407,1705681848211,-716.62,0.00028767,2]
[312181409,1705681848222,-777.15,0.00028767,2]
[312181411,1705681848234,-245.045733,0.000288,2]
[312181413,1705681848243,-32769.4019152,0.0002888,2]
[312181419,1705681848290,-67887.17009325,0.0002888,2]
[312181421,1705681848303,-1027.4930123,0.0002888,2]
[312181423,1705681848316,-4053.90000001,0.0002888,2]
[312181479,1705681848849,-280.4,0.00018489,2]
[312181487,1705681848925,-4324.38227444,0.00018489,2]
[312181490,1705681848936,-8288.0257163,0.00018489,2]
[312181492,1705681848948,-305.53024882,0.00018489,2]
[312183247,1705682837090,-154.84515485,0.00018488,2]
[312183248,1705682837115,-2990.84459351,0.00018489,2]
[312183249,1705682838085,-761.77764935,0.00018489,2]
[312183250,1705682838115,-156.58045806,0.00018489,2]
[312183257,1705682945106,-3789.45530436,0.00018489,2]
[312183258,1705682945127,-416.58509474,0.00018489,5]
[312183259,1705682945146,-284.45476567,0.000227,2]
[312183260,1705682951120,-539.41177399,0.000227,2]
[312183262,1705682991327,452.47030798,0.00018489,2]
[312183263,1705682991350,250.0,0.00018489,2]
[312183323,1705683032020,-477.55876098,0.00018489,2]
[312183326,1705683032029,-167.65388,0.00025004,2]
[312183329,1705683032039,-164.1685035,0.00025351,2]
[312183332,1705683032048,-3015.16150686,0.00025642,2]
[312183336,1705683032060,-4337.99650824,0.00025642,2]
[312183338,1705683032069,-661.83658413,0.00026542,2]
[312183340,1705683032078,-591.57131736,0.00026667,2]
[312183342,1705683032088,-274.61857249,0.00027017,2]
[312183344,1705683032097,-1888.99101156,0.00027018,2]
[312183346,1705683032108,-1704.08426279,0.00027121,2]
[312183348,1705683032117,-172.4989008,0.00027295,3]
[312183350,1705683032126,-5762.71,0.00027387,3]
[312183352,1705683032135,-4802.26,0.00027387,3]
[312183354,1705683032145,-155.09615962,0.00027395,2]
[312183356,1705683032154,-155.37359722,0.00027395,2]
[312183358,1705683032163,-12434.84622913,0.00027395,2]
[312183360,1705683032172,-268.42738089,0.00027395,2]
[312183362,1705683032181,-155.13659816,0.00027395,2]
[312183364,1705683032190,-873.86173983,0.00027395,2]
[312183366,1705683032199,-323.39599469,0.00027395,2]
[312183368,1705683032208,-317.97883048,0.00027395,2]
[312183370,1705683032217,-2106.30961678,0.00027395,2]
[312183372,1705683032226,-243.90712428,0.00027395,2]
[312183374,1705683032235,-787.34773645,0.00027395,2]
[312183376,1705683032244,-688.03989937,0.00027395,2]
[312183378,1705683032257,-441.85759612,0.00027396,2]
[312183380,1705683032266,-711.22786755,0.00027396,2]
[312183382,1705683032276,-155.6359278,0.00027396,2]
[312183384,1705683032285,-1042.23653843,0.00027396,2]
[312183386,1705683032294,-500.0,0.00027397,2]
[312183388,1705683032303,-511.50830956,0.00027397,2]
[312183390,1705683032312,-500.0,0.00027397,2]
[312183392,1705683032321,-500.0,0.00027397,2]
[312183394,1705683032330,-500.0,0.00027397,2]
[312183396,1705683032339,-500.0,0.00027397,2]
[312183398,1705683032348,-500.0,0.00027397,2]
[312183400,1705683032357,-500.0,0.00027397,2]
[312183402,1705683032366,-155.1627728,0.00027397,2]
[312183403,1705683032376,-500.0,0.00027397,2]
[312183405,1705683032385,-491.60142791,0.00027397,2]
[312183407,1705683032394,-500.0,0.00027397,2]
[312183410,1705683032403,-500.0,0.00027397,2]
[312183412,1705683032413,-500.0,0.00027397,2]
[312183414,1705683032422,-500.0,0.00027397,2]
[312183416,1705683032431,-500.0,0.00027397,2]
[312183417,1705683032440,-500.0,0.00027397,2]
[312183419,1705683032449,-500.0,0.00027397,2]
[312183421,1705683032458,-500.0,0.00027397,2]
[312183423,1705683032468,-500.76349209,0.00027397,2]
[312183425,1705683032477,-500.0,0.00027397,2]
[312183427,1705683032486,-500.0,0.00027397,2]
[312183429,1705683032495,-527.31,0.00027397,2]
[312183431,1705683032509,-501.85237378,0.00027397,2]
[312183433,1705683032518,-500.0,0.00027397,2]
[312183435,1705683032527,-500.0,0.00027397,2]
[312183437,1705683032536,-500.0,0.00027397,2]
[312183439,1705683032546,-500.0,0.00027397,2]
[312183441,1705683032556,-500.0,0.00027397,2]
[312183443,1705683032565,-586.29188756,0.00027397,2]
[312183445,1705683032574,-628.4,0.00027397,2]
[312183447,1705683032583,-500.0,0.00027397,2]
[312183449,1705683032592,-1069.01,0.00027397,2]
[312183451,1705683032601,-500.0,0.00027397,2]
[312183453,1705683032611,-574.17,0.00027397,2]
[312183455,1705683032620,-500.0,0.00027397,2]
[312183457,1705683032631,-500.0,0.00027397,2]
[312183459,1705683032642,-500.0,0.00027397,2]
[312183461,1705683032651,-500.0,0.00027397,2]
[312183463,1705683032660,-500.0,0.00027397,2]
[312183465,1705683032671,-1625.91,0.00027397,2]
[312183467,1705683032680,-500.0,0.00027397,2]
[312183469,1705683032690,-500.0,0.00027397,2]
[312183471,1705683032699,-578.83134708,0.00027397,2]
[312183473,1705683032709,-500.0,0.00027397,2]
[312183475,1705683032719,-500.0,0.00027397,2]
[312183477,1705683032728,-500.0,0.00027397,2]
[312183479,1705683032738,-500.0,0.00027397,2]
[312183481,1705683032746,-504.20658948,0.00027397,2]
[312183483,1705683032759,-500.0,0.00027397,2]
[312183485,1705683032769,-399.71925343,0.00027397,2]
[312183487,1705683032778,-503.61,0.00027397,2]
[312183489,1705683032787,-500.0,0.00027397,2]
[312183491,1705683032796,-500.0,0.00027397,2]
[312183493,1705683032806,-500.0,0.00027397,2]
[312183495,1705683032815,-500.0,0.00027397,2]
[312183497,1705683032825,-500.0,0.00027397,2]
[312183499,1705683032834,-500.0,0.00027397,2]
[312183501,1705683032844,-500.0,0.00027397,2]
[312183503,1705683032854,-500.0,0.00027397,2]
[312183505,1705683032863,-616.62,0.00027397,2]
[312183507,1705683032872,-500.0,0.00027397,2]
[312183509,1705683032882,-500.0,0.00027397,2]
[312183511,1705683032891,-840.94,0.00027397,2]
[312183513,1705683032900,-500.0,0.00027397,2]
[312183515,1705683032909,-500.0,0.00027397,2]
[312183517,1705683032919,-500.0,0.00027397,2]
[312183519,1705683032928,-500.0,0.00027397,2]
[312183521,1705683032937,-500.0,0.00027397,2]
[312183523,1705683032946,-500.0,0.00027397,2]
[312183525,1705683032956,-500.0,0.00027397,2]
[312183527,1705683032965,-500.0,0.00027397,2]
[312183529,1705683032974,-367.3266649,0.00027397,2]
[312183531,1705683032983,-500.0,0.00027397,2]
[312183534,1705683032993,-500.0,0.00027397,2]
[312183535,1705683033006,-500.0,0.00027397,2]
[312183536,1705683033015,-500.0,0.00027397,2]
[312183537,1705683033024,-500.0,0.00027397,2]
[312183538,1705683033033,-937.4,0.00027397,2]
[312183539,1705683033042,-500.0,0.00027397,2]
[312183540,1705683033051,-500.0,0.00027397,2]
[312183541,1705683033061,-500.0,0.00027397,2]
[312183542,1705683033070,-500.0,0.00027397,2]
[312183543,1705683033080,-618.13,0.00027397,2]
[312183544,1705683033089,-500.0,0.00027397,2]
[312183545,1705683033099,-1000.0,0.00027397,2]
[312183546,1705683033108,-641.85,0.00027397,2]
[312183547,1705683033117,-723.91,0.00027397,2]
[312183548,1705683033126,-3128.69,0.00027397,2]
[312183549,1705683033137,-3839.7489102,0.00027397,2]
[312184060,1705683038070,-4001.88,0.00027387,3]
[312184062,1705683038080,-2483.7810898,0.00027397,2]
[312184064,1705683038089,-3238.26,0.00027397,2]
[312184066,1705683038098,-796.86,0.00027397,2]
[312184068,1705683038107,-500.0,0.00027397,2]
[312184070,1705683038116,-1382.89,0.00027397,2]
[312184072,1705683038126,-653.13,0.00027397,2]
[312184074,1705683038135,-500.0,0.00027397,2]
[312184076,1705683038144,-500.0,0.00027397,2]
[312184078,1705683038153,-502.73184394,0.00027397,2]
[312184079,1705683038160,-500.0,0.00027397,2]
[312184081,1705683038166,-500.0,0.00027397,2]
[312184083,1705683038175,-619.60676546,0.00027397,2]
[312184085,1705683038183,-500.0,0.00027397,2]
[312184087,1705683038192,-500.0,0.00027397,2]
[312184089,1705683038202,-2456.14,0.00027397,2]
[312184091,1705683038212,-500.0,0.00027397,2]
[312184093,1705683038221,-4599.22547514,0.00027397,2]
[312184095,1705683038233,-758.08391562,0.00027397,2]
[312184097,1705683038244,-965.43982228,0.00027397,2]
[312184099,1705683038257,-2056.24078696,0.00027397,2]
[312184101,1705683038266,-500.0,0.00027397,2]
[312184103,1705683038275,-500.0,0.00027397,2]
[312184105,1705683038284,-500.0,0.00027397,2]
[312184107,1705683038294,-500.0,0.00027397,2]
[312184109,1705683038301,-506.64965042,0.00027397,2]
[312184111,1705683038306,-500.0,0.00027397,2]
[312184112,1705683038315,-5139.9590855,0.00027397,2]
[312184115,1705683038327,-6557.4409145,0.00027397,2]
[312184117,1705683038338,-541.69,0.00027397,2]
[312184119,1705683038347,-500.0,0.00027397,2]
[312184121,1705683038357,-500.0,0.00027397,2]
[312184122,1705683038366,-291.68044868,0.00027397,2]
[312184132,1705683038455,-713.7,0.00027397,2]
[312184134,1705683038465,-500.0,0.00027397,2]
[312184136,1705683038474,-500.0,0.00027397,2]
[312184138,1705683038483,-500.0,0.00027397,2]
[312184140,1705683038492,-500.0,0.00027397,2]
[312184142,1705683038504,-405.32457491,0.00027397,2]
[312184144,1705683038513,-500.0,0.00027397,2]
[312184146,1705683038522,-500.0,0.00027397,2]
[312184148,1705683038531,-500.0,0.00027397,2]
[312184150,1705683038541,-500.0,0.00027397,2]
[312184152,1705683038550,-1098.42,0.00027397,2]
[312184154,1705683038559,-500.0,0.00027397,2]
[312184156,1705683038568,-1294.79,0.00027397,2]
[312184158,1705683038577,-500.0,0.00027397,2]
[312184160,1705683038586,-500.0,0.00027397,2]
[312184162,1705683038595,-500.0,0.00027397,2]
[312184164,1705683038605,-499.807,0.00027397,2]
[312184166,1705683038614,-973.99,0.00027397,2]
[312184167,1705683038624,-500.0,0.00027397,2]
[312184169,1705683038635,-509.97078141,0.00027397,2]
[312184171,1705683038645,-2995.83,0.00027397,2]
[312184174,1705683038654,-500.0,0.00027397,2]
[312184175,1705683038663,-500.0,0.00027397,2]
[312184177,1705683038672,-500.0,0.00027397,2]
[312184179,1705683038681,-500.0,0.00027397,2]
[312184181,1705683038691,-617.02,0.00027397,2]
[312184184,1705683038701,-500.0,0.00027397,2]
[312184185,1705683038710,-500.0,0.00027397,2]
[312184187,1705683038717,-500.0,0.00027397,2]
[312184189,1705683038727,-500.0,0.00027397,2]
[312184191,1705683038736,-500.0,0.00027397,2]
[312184193,1705683038745,-505.34,0.00027397,2]
[312184195,1705683038756,-154.9690062,0.0002757,2]
[312184197,1705683038766,-802.93943464,0.00027571,3]
[312184199,1705683038776,-102178.89049413,0.00027571,2]
[312184201,1705683038785,-154.47214292,0.00027571,2]
[312184203,1705683038794,-500.0,0.00027671,2]
[312184205,1705683038804,-500.0,0.00027671,2]
[312184207,1705683038813,-500.0,0.00027671,2]
[312184209,1705683038823,-500.0,0.00027671,2]
[312184211,1705683038832,-465.73884966,0.00027671,2]
[312184213,1705683038841,-500.0,0.00027671,2]
[312184215,1705683038850,-509.24750775,0.00027671,2]
[312184217,1705683038859,-500.0,0.00027671,2]
[312184219,1705683038868,-500.0,0.00027671,2]
[312184220,1705683038878,-500.0,0.00027671,2]
[312184223,1705683038887,-500.0,0.00027671,2]
[312184224,1705683038896,-500.0,0.00027671,2]
[312184227,1705683038906,-628.4,0.00027671,2]
[312184228,1705683038916,-1069.01,0.00027671,2]
[312184231,1705683038926,-500.0,0.00027671,2]
[312184233,1705683038936,-574.17,0.00027671,2]
[312184235,1705683038945,-500.0,0.00027671,2]
[312184237,1705683038954,-500.0,0.00027671,2]
[312184239,1705683038963,-500.0,0.00027671,2]
[312184241,1705683038972,-500.0,0.00027671,2]
[312184242,1705683038981,-1625.91,0.00027671,2]
[312184244,1705683038990,-500.0,0.00027671,2]
[312184246,1705683038999,-500.0,0.00027671,2]
[312184248,1705683039011,-500.0,0.00027671,2]
[312184250,1705683039019,-511.35001389,0.00027671,2]
[312184252,1705683039029,-503.61,0.00027671,2]
[312184254,1705683039037,-500.0,0.00027671,2]
[312184256,1705683039047,-500.0,0.00027671,2]
[312184258,1705683039056,-500.0,0.00027671,2]
[312184260,1705683039066,-500.0,0.00027671,2]
[312184262,1705683039075,-500.0,0.00027671,2]
[312184264,1705683039084,-500.0,0.00027671,2]
[312184266,1705683039093,-616.62,0.00027671,2]
[312184268,1705683039102,-840.94,0.00027671,2]
[312184270,1705683039111,-500.0,0.00027671,2]
[312184272,1705683039120,-500.0,0.00027671,2]
[312184274,1705683039129,-500.0,0.00027671,2]
[312184276,1705683039139,-500.0,0.00027671,2]
[312184278,1705683039148,-500.0,0.00027671,2]
[312184280,1705683039157,-500.0,0.00027671,2]
[312184282,1705683039167,-500.0,0.00027671,2]
[312184284,1705683039176,-500.0,0.00027671,2]
[312184286,1705683039185,-937.4,0.00027671,2]
[312184288,1705683039194,-500.0,0.00027671,2]
[312184290,1705683039203,-500.0,0.00027671,2]
[312184292,1705683039213,-618.13,0.00027671,2]
[312184294,1705683039221,-500.0,0.00027671,2]
[312184296,1705683039230,-641.85,0.00027671,2]
[312184298,1705683039240,-723.91,0.00027671,2]
[312184300,1705683039249,-3128.69,0.00027671,2]
[312184302,1705683039259,-6323.53,0.00027671,2]
[312184304,1705683039269,-3238.26,0.00027671,2]
[312184306,1705683039278,-796.86,0.00027671,2]
[312184308,1705683039286,-597.57644072,0.00027671,2]
[312184310,1705683039295,-1382.89,0.00027671,2]
[312184311,1705683039304,-653.13,0.00027671,2]
[312184313,1705683039314,-500.0,0.00027671,2]
[312184315,1705683039323,-477.01994984,0.00027671,2]
[312184317,1705683039336,-500.0,0.00027671,2]
[312184320,1705683039345,-500.0,0.00027671,2]
[312184322,1705683039354,-2456.14,0.00027671,2]
[312184324,1705683039363,-8378.99,0.00027671,2]
[312184326,1705683039372,-500.0,0.00027671,2]
[312184328,1705683039381,-533.43528292,0.00027671,2]
[312184330,1705683039390,-500.0,0.00027671,2]
[312184332,1705683039399,-500.0,0.00027671,2]
[312184334,1705683039408,-11697.4,0.00027671,2]
[312184336,1705683039417,-541.69,0.00027671,2]
[312184338,1705683039426,-713.7,0.00027671,2]
[312184340,1705683039435,-500.0,0.00027671,2]
[312184342,1705683039444,-500.0,0.00027671,2]
[312184344,1705683039453,-261.30404431,0.00027671,2]
[312184346,1705683039462,-500.0,0.00027671,2]
[312184348,1705683039472,-1098.42,0.00027671,2]
[312184350,1705683039481,-500.0,0.00027671,2]
[312184352,1705683039490,-1294.79,0.00027671,2]
[312184354,1705683039500,-500.0,0.00027671,2]
[312184356,1705683039511,-500.0,0.00027671,2]
[312184358,1705683039520,-973.99,0.00027671,2]
[312184360,1705683039529,-500.0,0.00027671,2]
[312184362,1705683039538,-2995.83,0.00027671,2]
[312184364,1705683039547,-500.0,0.00027671,2]
[312184366,1705683039556,-500.0,0.00027671,2]
[312184368,1705683039565,-617.02,0.00027671,2]
[312184370,1705683039574,-505.34,0.00027671,2]
[312184372,1705683039583,-1000.0,0.00027685,2]
[312184374,1705683039592,-1000.0,0.00027724,2]
[312184376,1705683039601,-9114.76945328,0.0002785,4]
[312184378,1705683039612,-200.0,0.00027868,15]
[312184380,1705683039621,-622.09182921,0.0002787,2]
[312184382,1705683039631,-500.0,0.00027945,2]
[312184384,1705683039642,-500.0,0.00027945,2]
[312184386,1705683039651,-500.0,0.00027945,2]
[312184388,1705683039660,-500.0,0.00027945,2]
[312184390,1705683039669,-365.25469659,0.00027945,2]
[312184392,1705683039680,-500.0,0.00027945,2]
[312184394,1705683039689,-500.0,0.00027945,2]
[312184396,1705683039698,-500.0,0.00027945,2]
[312184398,1705683039707,-500.0,0.00027945,2]
[312184400,1705683039717,-628.4,0.00027945,2]
[312184402,1705683039727,-1069.01,0.00027945,2]
[312184404,1705683039736,-574.17,0.00027945,2]
[312184406,1705683039746,-500.0,0.00027945,2]
[312184408,1705683039757,-500.0,0.00027945,2]
[312184410,1705683039766,-500.0,0.00027945,2]
[312184411,1705683039775,-500.0,0.00027945,2]
[312184413,1705683039784,-1625.91,0.00027945,2]
[312184416,1705683039794,-500.0,0.00027945,2]
[312184417,1705683039804,-500.0,0.00027945,2]
[312184419,1705683039813,-503.61,0.00027945,2]
[312184421,1705683039822,-500.0,0.00027945,2]
[312184423,1705683039832,-500.0,0.00027945,2]
[312184426,1705683039841,-616.62,0.00027945,2]
[312184427,1705683039851,-840.94,0.00027945,2]
[312184429,1705683039861,-500.0,0.00027945,2]
[312184431,1705683039870,-500.0,0.00027945,2]
[312184433,1705683039880,-500.0,0.00027945,2]
[312184435,1705683039889,-500.0,0.00027945,2]
[312184437,1705683039898,-500.0,0.00027945,2]
[312184439,1705683039907,-500.0,0.00027945,2]
[312184441,1705683039917,-937.4,0.00027945,2]
[312184443,1705683039927,-500.0,0.00027945,2]
[312184445,1705683039936,-500.0,0.00027945,2]
[312184447,1705683039945,-618.13,0.00027945,2]
[312184449,1705683039954,-500.0,0.00027945,2]
[312184451,1705683039963,-641.85,0.00027945,2]
[312184453,1705683039973,-723.91,0.00027945,2]
[312184455,1705683039982,-3128.69,0.00027945,2]
[312184457,1705683039991,-6323.53,0.00027945,2]
[312184459,1705683040001,-3238.26,0.00027945,2]
[312184461,1705683040017,-796.86,0.00027945,2]
[312184464,1705683040026,-1382.89,0.00027945,2]
[312184467,1705683040035,-653.13,0.00027945,2]
[312184469,1705683040044,-500.0,0.00027945,2]
[312184471,1705683040053,-500.0,0.00027945,2]
[312184473,1705683040063,-2456.14,0.00027945,2]
[312184475,1705683040072,-8378.99,0.00027945,2]
[312184477,1705683040082,-500.0,0.00027945,2]
[312184479,1705683040091,-500.0,0.00027945,2]
[312184482,1705683040101,-500.0,0.00027945,2]
[312184484,1705683040110,-11697.4,0.00027945,2]
[312184486,1705683040120,-541.69,0.00027945,2]